[Event "Titled Tuesday Blitz August 15 Early 2023"]
[White "Huschenbeth, Niclas"]
[Black "WindWhistler11"]
[WhiteFideId "24604747"]
[WhiteElo "2612"]
[BlackElo "2446"]
[Result "1-0"]
[Round "6"]
[TimeControl "180+1"]
[Date "2023.08.15"]
[WhiteClock "0:00:21"]
[BlackClock "0:00:02"]
[Board "80"]

1. e4 {[%clk 0:03:00]}  e6 {[%clk 0:02:59]} 2. d4 {[%clk 0:03:00]}  d5 {[%clk 0:02:59]} 3. Nc3 {[%clk 0:03:00]}  Bb4 {[%clk 0:02:58]} 4. e5 {[%clk 0:02:59]}  Ne7 {[%clk 0:02:57]} 5. a3 {[%clk 0:02:59]}  Bxc3+ {[%clk 0:02:57]} 6. bxc3 {[%clk 0:03:00]}  c5 {[%clk 0:02:57]} 7. Qg4 {[%clk 0:03:00]}  Nf5 {[%clk 0:02:45]} 8. Bd3 {[%clk 0:02:53]}  h5 {[%clk 0:02:44]} 9. Qh3 {[%clk 0:02:36]}  Qa5 {[%clk 0:02:26]} 10. Bd2 {[%clk 0:02:31]}  c4 {[%clk 0:02:25]} 11. Bxf5 {[%clk 0:02:30]}  exf5 {[%clk 0:02:26]} 12. Qg3 {[%clk 0:02:22]}  Rg8 {[%clk 0:02:01]} 13. Nh3 {[%clk 0:02:21]}  Qa4 {[%clk 0:01:41]} 14. Ra2 {[%clk 0:02:08]}  Be6 {[%clk 0:01:28]} 15. Nf4 {[%clk 0:02:07]}  Nc6 {[%clk 0:00:57]} 16. Nxe6 {[%clk 0:01:57]}  fxe6 {[%clk 0:00:56]} 17. Qg6+ {[%clk 0:01:57]}  Kd7 {[%clk 0:00:56]} 18. Qf7+ {[%clk 0:01:58]}  Ne7 {[%clk 0:00:57]} 19. Bg5 {[%clk 0:01:58]}  Rge8 {[%clk 0:00:50]} 20. Qxg7 {[%clk 0:01:57]}  Qa5 {[%clk 0:00:46]} 21. Kd2 {[%clk 0:01:49]}  Rac8 {[%clk 0:00:35]} 22. h4 {[%clk 0:01:37]}  b5 {[%clk 0:00:28]} 23. Rh3 {[%clk 0:01:32]}  Qb6 {[%clk 0:00:21]} 24. Rg3 {[%clk 0:01:27]}  Rc7 {[%clk 0:00:20]} 25. Qf7 {[%clk 0:01:15]}  Qc6 {[%clk 0:00:19]} 26. Bf6 {[%clk 0:01:11]}  Kc8 {[%clk 0:00:17]} 27. Rg7 {[%clk 0:01:10]}  f4 {[%clk 0:00:13]} 28. Qxh5 {[%clk 0:00:58]}  Nf5 {[%clk 0:00:10]} 29. Rxc7+ {[%clk 0:00:56]}  Kxc7 {[%clk 0:00:11]} 30. Qf7+ {[%clk 0:00:49]}  Kb6 {[%clk 0:00:11]} 31. Ra1 {[%clk 0:00:35]}  Qc8 {[%clk 0:00:11]} 32. a4 {[%clk 0:00:31]}  b4 {[%clk 0:00:09]} 33. Rb1 {[%clk 0:00:31]}  a5 {[%clk 0:00:09]} 34. cxb4 {[%clk 0:00:29]}  c3+ {[%clk 0:00:09]} 35. Ke1 {[%clk 0:00:28]}  Ka6 {[%clk 0:00:01]} 36. bxa5 {[%clk 0:00:23]}  Kxa5 {[%clk 0:00:02]} 37. Qa7+ {[%clk 0:00:21]}  Qa6 {[%clk 0:00:02]} 38. Qc5+ {[%clk 0:00:20]}  Kxa4 {[%clk 0:00:02]} 39. Qb4# {[%clk 0:00:21]} 1-0


[Site "https://www.chess.com"]

[Event "Titled Tuesday Blitz August 15 Early 2023"]
[White "Bueno, Alfeu Junior Varela"]
[Black "Papayan, Oleg"]
[WhiteFideId "2108879"]
[BlackFideId "4193911"]
[WhiteElo "2445"]
[BlackElo "2607"]
[Result "0-1"]
[Round "6"]
[TimeControl "180+1"]
[Date "2023.08.15"]
[WhiteClock "0:00:01"]
[BlackClock "0:00:03"]
[Board "81"]

1. e4 {[%clk 0:02:57]}  d5 {[%clk 0:02:58]} 2. exd5 {[%clk 0:02:56]}  Qxd5 {[%clk 0:02:59]} 3. Nc3 {[%clk 0:02:56]}  Qd8 {[%clk 0:03:00]} 4. d4 {[%clk 0:02:55]}  c6 {[%clk 0:03:00]} 5. Bc4 {[%clk 0:02:53]}  Bf5 {[%clk 0:03:01]} 6. Nf3 {[%clk 0:02:52]}  e6 {[%clk 0:03:01]} 7. Qe2 {[%clk 0:02:51]}  Nf6 {[%clk 0:02:59]} 8. Ne5 {[%clk 0:02:48]}  Qxd4 {[%clk 0:02:59]} 9. Bd2 {[%clk 0:02:41]}  Bd6 {[%clk 0:02:21]} 10. Nf3 {[%clk 0:02:28]}  Qb6 {[%clk 0:02:15]} 11. O-O-O {[%clk 0:02:27]}  Qc7 {[%clk 0:01:48]} 12. Nh4 {[%clk 0:02:18]}  O-O {[%clk 0:01:43]} 13. Nxf5 {[%clk 0:02:09]}  exf5 {[%clk 0:01:44]} 14. Qf3 {[%clk 0:01:56]}  g6 {[%clk 0:01:33]} 15. h3 {[%clk 0:01:50]}  Nbd7 {[%clk 0:01:31]} 16. g4 {[%clk 0:01:49]}  Ne5 {[%clk 0:01:31]} 17. Qe2 {[%clk 0:01:46]}  Nxc4 {[%clk 0:01:29]} 18. Qxc4 {[%clk 0:01:47]}  f4 {[%clk 0:01:21]} 19. g5 {[%clk 0:01:47]}  Nh5 {[%clk 0:01:00]} 20. Ne4 {[%clk 0:01:42]}  Be5 {[%clk 0:00:57]} 21. Bc3 {[%clk 0:01:42]}  Rad8 {[%clk 0:00:44]} 22. Rd3 {[%clk 0:01:26]}  Rxd3 {[%clk 0:00:43]} 23. Qxd3 {[%clk 0:01:27]}  Re8 {[%clk 0:00:26]} 24. Re1 {[%clk 0:01:19]}  Bxc3 {[%clk 0:00:26]} 25. Qxc3 {[%clk 0:01:20]}  Re6 {[%clk 0:00:10]} 26. f3 {[%clk 0:00:37]}  Qe7 {[%clk 0:00:09]} 27. b3 {[%clk 0:00:26]}  f5 {[%clk 0:00:06]} 28. gxf6 {[%clk 0:00:26]}  Nxf6 {[%clk 0:00:06]} 29. Qc4 {[%clk 0:00:20]}  Nxe4 {[%clk 0:00:04]} 30. Rxe4 {[%clk 0:00:21]}  Kf7 {[%clk 0:00:03]} 31. Rxf4+ {[%clk 0:00:21]}  Kg7 {[%clk 0:00:04]} 32. Qd4+ {[%clk 0:00:21]}  Rf6 {[%clk 0:00:04]} 33. Kd2 {[%clk 0:00:17]}  g5 {[%clk 0:00:03]} 34. Rxf6 {[%clk 0:00:15]}  Qxf6 {[%clk 0:00:04]} 35. Qxf6+ {[%clk 0:00:12]}  Kxf6 {[%clk 0:00:05]} 36. Ke3 {[%clk 0:00:12]}  Kf5 {[%clk 0:00:04]} 37. c4 {[%clk 0:00:12]}  c5 {[%clk 0:00:04]} 38. a3 {[%clk 0:00:09]}  a5 {[%clk 0:00:04]} 39. a4 {[%clk 0:00:07]}  b6 {[%clk 0:00:05]} 40. Kf2 {[%clk 0:00:07]}  Kf4 {[%clk 0:00:06]} 41. Kg2 {[%clk 0:00:06]}  h5 {[%clk 0:00:03]} 42. Kf2 {[%clk 0:00:07]}  h4 {[%clk 0:00:03]} 43. Kg2 {[%clk 0:00:01]}  Ke3 {[%clk 0:00:03]} 0-1


[Site "https://www.chess.com"]

[Event "Titled Tuesday Blitz August 15 Early 2023"]
[White "Chyngyz, Sultai"]
[Black "Vlassov, Nikolai"]
[WhiteFideId "13803158"]
[BlackFideId "4103360"]
[WhiteElo "2432"]
[BlackElo "2607"]
[Result "0-1"]
[Round "6"]
[TimeControl "180+1"]
[Date "2023.08.15"]
[WhiteClock "0:00:00"]
[BlackClock "0:01:37"]
[Board "82"]

1. e4 {[%clk 0:02:56]}  Nc6 {[%clk 0:02:56]} 2. Nf3 {[%clk 0:02:55]}  d5 {[%clk 0:02:56]} 3. exd5 {[%clk 0:02:54]}  Qxd5 {[%clk 0:02:57]} 4. Nc3 {[%clk 0:02:55]}  Qa5 {[%clk 0:02:57]} 5. d4 {[%clk 0:02:55]}  Bg4 {[%clk 0:02:56]} 6. Be2 {[%clk 0:02:54]}  O-O-O {[%clk 0:02:56]} 7. Be3 {[%clk 0:02:54]}  Nf6 {[%clk 0:02:56]} 8. h3 {[%clk 0:02:54]}  Bxf3 {[%clk 0:02:55]} 9. Bxf3 {[%clk 0:02:55]}  Nxd4 {[%clk 0:02:56]} 10. Bxd4 {[%clk 0:02:53]}  Qb4 {[%clk 0:02:56]} 11. O-O {[%clk 0:02:50]}  Rxd4 {[%clk 0:02:55]} 12. Qe2 {[%clk 0:02:50]}  e6 {[%clk 0:02:55]} 13. a3 {[%clk 0:02:48]}  Qb6 {[%clk 0:02:54]} 14. Rad1 {[%clk 0:02:46]}  Be7 {[%clk 0:02:54]} 15. Rxd4 {[%clk 0:02:36]}  Qxd4 {[%clk 0:02:54]} 16. Nb5 {[%clk 0:02:31]}  Qb6 {[%clk 0:02:52]} 17. a4 {[%clk 0:02:32]}  Rd8 {[%clk 0:02:50]} 18. Ra1 {[%clk 0:02:23]}  a6 {[%clk 0:02:49]} 19. c4 {[%clk 0:01:15]}  axb5 {[%clk 0:02:41]} 20. a5 {[%clk 0:01:15]}  Qd4 {[%clk 0:02:23]} 21. cxb5 {[%clk 0:01:06]}  Bc5 {[%clk 0:02:17]} 22. a6 {[%clk 0:00:44]}  bxa6 {[%clk 0:02:13]} 23. Rxa6 {[%clk 0:00:21]}  Nd5 {[%clk 0:02:05]} 24. b6 {[%clk 0:00:16]}  Bxb6 {[%clk 0:02:02]} 25. Kh1 {[%clk 0:00:05]}  Qxf2 {[%clk 0:01:55]} 26. Qd1 {[%clk 0:00:02]}  Kb7 {[%clk 0:01:48]} 27. Ra1 {[%clk 0:00:00]}  Qd4 {[%clk 0:01:37]} 0-1


[Site "https://www.chess.com"]

[Event "Titled Tuesday Blitz August 15 Early 2023"]
[White "Ibadov, Dashgyn"]
[Black "KorolDimitriy75"]
[WhiteFideId "24107514"]
[WhiteElo "2605"]
[BlackElo "2429"]
[Result "1-0"]
[Round "6"]
[TimeControl "180+1"]
[Date "2023.08.15"]
[WhiteClock "0:01:41"]
[BlackClock "0:00:00"]
[Board "83"]

1. e4 {[%clk 0:03:00]}  c5 {[%clk 0:02:59]} 2. Nf3 {[%clk 0:03:00]}  d6 {[%clk 0:02:59]} 3. d4 {[%clk 0:03:00]}  cxd4 {[%clk 0:03:00]} 4. Nxd4 {[%clk 0:03:00]}  Nf6 {[%clk 0:03:00]} 5. Nc3 {[%clk 0:03:01]}  g6 {[%clk 0:03:00]} 6. Be3 {[%clk 0:03:01]}  Bg7 {[%clk 0:03:01]} 7. f3 {[%clk 0:03:02]}  O-O {[%clk 0:03:01]} 8. Qd2 {[%clk 0:03:03]}  Nc6 {[%clk 0:03:01]} 9. O-O-O {[%clk 0:03:04]}  d5 {[%clk 0:03:01]} 10. Nxc6 {[%clk 0:03:04]}  bxc6 {[%clk 0:03:01]} 11. Bc4 {[%clk 0:03:04]}  e6 {[%clk 0:02:55]} 12. Bb3 {[%clk 0:03:04]}  Qc7 {[%clk 0:02:49]} 13. h4 {[%clk 0:02:53]}  Rd8 {[%clk 0:02:42]} 14. Bf4 {[%clk 0:02:46]}  e5 {[%clk 0:02:41]} 15. Bh6 {[%clk 0:02:46]}  Be6 {[%clk 0:02:13]} 16. Bxg7 {[%clk 0:02:32]}  Kxg7 {[%clk 0:02:14]} 17. h5 {[%clk 0:02:27]}  d4 {[%clk 0:01:08]} 18. hxg6 {[%clk 0:02:19]}  dxc3 {[%clk 0:00:02]} 19. Qh6+ {[%clk 0:02:18]}  Kh8 {[%clk 0:00:02]} 20. g7+ {[%clk 0:02:08]}  Kg8 {[%clk 0:00:02]} 21. Qxf6 {[%clk 0:02:01]}  cxb2+ {[%clk 0:00:03]} 22. Kb1 {[%clk 0:01:58]}  Bxb3 {[%clk 0:00:04]} 23. axb3 {[%clk 0:01:46]}  Qa5 {[%clk 0:00:03]} 24. Kxb2 {[%clk 0:01:44]}  Qc5 {[%clk 0:00:00]} 25. Qh6 {[%clk 0:01:41]} 1-0


[Site "https://www.chess.com"]

[Event "Titled Tuesday Blitz August 15 Early 2023"]
[White "Budrewicz, Krzysztof"]
[Black "Kozelov, Roman"]
[WhiteFideId "1127950"]
[BlackFideId "14133377"]
[WhiteElo "2602"]
[BlackElo "2401"]
[Result "0-1"]
[Round "6"]
[TimeControl "180+1"]
[Date "2023.08.15"]
[WhiteClock "0:00:29"]
[BlackClock "0:00:59"]
[Board "84"]

1. d4 {[%clk 0:02:13]}  Nf6 {[%clk 0:02:58]} 2. c4 {[%clk 0:02:13]}  e6 {[%clk 0:02:57]} 3. a3 {[%clk 0:02:13]}  b6 {[%clk 0:02:57]} 4. Nc3 {[%clk 0:02:13]}  Bb7 {[%clk 0:02:58]} 5. Nf3 {[%clk 0:02:14]}  Be7 {[%clk 0:02:57]} 6. g3 {[%clk 0:02:14]}  O-O {[%clk 0:02:57]} 7. Bg2 {[%clk 0:02:15]}  d5 {[%clk 0:02:58]} 8. O-O {[%clk 0:02:15]}  dxc4 {[%clk 0:02:58]} 9. Bf4 {[%clk 0:02:15]}  Nbd7 {[%clk 0:02:58]} 10. Rc1 {[%clk 0:02:14]}  c5 {[%clk 0:02:58]} 11. Nb5 {[%clk 0:01:51]}  cxd4 {[%clk 0:02:53]} 12. Nfxd4 {[%clk 0:01:50]}  Bxg2 {[%clk 0:02:53]} 13. Kxg2 {[%clk 0:01:50]}  Nc5 {[%clk 0:02:53]} 14. Nc6 {[%clk 0:01:47]}  Qe8 {[%clk 0:02:47]} 15. Nxe7+ {[%clk 0:01:45]}  Qxe7 {[%clk 0:02:47]} 16. Bd6 {[%clk 0:01:37]}  Qb7+ {[%clk 0:02:46]} 17. f3 {[%clk 0:01:38]}  Rfd8 {[%clk 0:02:43]} 18. Qc2 {[%clk 0:01:38]}  a6 {[%clk 0:02:40]} 19. Bxc5 {[%clk 0:01:37]}  axb5 {[%clk 0:02:38]} 20. Bf2 {[%clk 0:01:37]}  Rd7 {[%clk 0:02:33]} 21. Rfd1 {[%clk 0:01:37]}  Rad8 {[%clk 0:02:33]} 22. Rxd7 {[%clk 0:01:37]}  Rxd7 {[%clk 0:02:33]} 23. Rd1 {[%clk 0:01:37]}  h6 {[%clk 0:02:25]} 24. Rxd7 {[%clk 0:01:34]}  Nxd7 {[%clk 0:02:24]} 25. Qd2 {[%clk 0:01:34]}  Qc6 {[%clk 0:02:22]} 26. Qd4 {[%clk 0:01:30]}  Nc5 {[%clk 0:02:21]} 27. h4 {[%clk 0:01:29]}  Qd5 {[%clk 0:02:16]} 28. Qf4 {[%clk 0:01:25]}  Na4 {[%clk 0:02:07]} 29. Bd4 {[%clk 0:01:20]}  f6 {[%clk 0:02:02]} 30. Bc3 {[%clk 0:01:18]}  e5 {[%clk 0:02:00]} 31. Qe3 {[%clk 0:01:15]}  Qc5 {[%clk 0:01:57]} 32. Qd2 {[%clk 0:01:14]}  Nxc3 {[%clk 0:01:53]} 33. Qxc3 {[%clk 0:01:14]}  Qd4 {[%clk 0:01:49]} 34. Qb4 {[%clk 0:01:02]}  Qc5 {[%clk 0:01:39]} 35. Qd2 {[%clk 0:01:02]}  Qd4 {[%clk 0:01:36]} 36. Qb4 {[%clk 0:01:02]}  Qe3 {[%clk 0:01:36]} 37. Kf1 {[%clk 0:01:01]}  Qc5 {[%clk 0:01:31]} 38. Qd2 {[%clk 0:01:00]}  Qd4 {[%clk 0:01:27]} 39. Qb4 {[%clk 0:01:00]}  Qd5 {[%clk 0:01:28]} 40. Qe7 {[%clk 0:00:54]}  Qd1+ {[%clk 0:01:26]} 41. Kf2 {[%clk 0:00:54]}  Qd4+ {[%clk 0:01:26]} 42. Kf1 {[%clk 0:00:53]}  Qxb2 {[%clk 0:01:27]} 43. Qe8+ {[%clk 0:00:53]}  Kh7 {[%clk 0:01:27]} 44. h5 {[%clk 0:00:52]}  Qb1+ {[%clk 0:01:27]} 45. Kf2 {[%clk 0:00:52]}  Qc2 {[%clk 0:01:22]} 46. Qxb5 {[%clk 0:00:49]}  c3 {[%clk 0:01:19]} 47. Qxb6 {[%clk 0:00:49]}  Qd2 {[%clk 0:01:17]} 48. Qb7 {[%clk 0:00:46]}  Qd4+ {[%clk 0:01:09]} 49. Kg2 {[%clk 0:00:45]}  Qc4 {[%clk 0:01:03]} 50. Qd7 {[%clk 0:00:43]}  c2 {[%clk 0:01:03]} 51. Qe8 {[%clk 0:00:38]}  c1=Q {[%clk 0:00:59]} 52. Qg6+ {[%clk 0:00:29]}  Kh8 {[%clk 0:00:59]} 0-1


[Site "https://www.chess.com"]

[Event "Titled Tuesday Blitz August 15 Early 2023"]
[White "Smiechu"]
[Black "Manukyan, Sargis A."]
[BlackFideId "13303970"]
[WhiteElo "2399"]
[BlackElo "2599"]
[Result "1/2-1/2"]
[Round "6"]
[TimeControl "180+1"]
[Date "2023.08.15"]
[WhiteClock "0:00:08"]
[BlackClock "0:00:06"]
[Board "85"]

1. e4 {[%clk 0:02:54]}  c5 {[%clk 0:03:00]} 2. Nf3 {[%clk 0:02:53]}  d6 {[%clk 0:03:00]} 3. d4 {[%clk 0:02:54]}  cxd4 {[%clk 0:03:01]} 4. Nxd4 {[%clk 0:02:54]}  Nf6 {[%clk 0:03:02]} 5. Nc3 {[%clk 0:02:55]}  g6 {[%clk 0:03:02]} 6. Be3 {[%clk 0:02:55]}  Bg7 {[%clk 0:03:03]} 7. f3 {[%clk 0:02:55]}  O-O {[%clk 0:03:04]} 8. Qd2 {[%clk 0:02:56]}  Nc6 {[%clk 0:03:04]} 9. Bc4 {[%clk 0:02:56]}  Bd7 {[%clk 0:03:05]} 10. h4 {[%clk 0:02:56]}  Rc8 {[%clk 0:03:01]} 11. Bb3 {[%clk 0:02:56]}  Nxd4 {[%clk 0:02:57]} 12. Bxd4 {[%clk 0:02:56]}  b5 {[%clk 0:02:58]} 13. h5 {[%clk 0:02:55]}  a5 {[%clk 0:02:53]} 14. hxg6 {[%clk 0:02:45]}  hxg6 {[%clk 0:02:52]} 15. g4 {[%clk 0:02:31]}  a4 {[%clk 0:02:47]} 16. Qh2 {[%clk 0:02:30]}  Re8 {[%clk 0:02:43]} 17. Bd5 {[%clk 0:02:16]}  e6 {[%clk 0:02:31]} 18. O-O-O {[%clk 0:01:49]}  Rxc3 {[%clk 0:02:05]} 19. Bxc3 {[%clk 0:01:45]}  exd5 {[%clk 0:02:05]} 20. Rxd5 {[%clk 0:01:44]}  b4 {[%clk 0:01:50]} 21. Bd4 {[%clk 0:01:36]}  Be6 {[%clk 0:01:16]} 22. Rxd6 {[%clk 0:01:31]}  Qc8 {[%clk 0:01:16]} 23. g5 {[%clk 0:01:24]}  Nh5 {[%clk 0:01:13]} 24. Bxg7 {[%clk 0:01:24]}  Kxg7 {[%clk 0:01:12]} 25. Qe5+ {[%clk 0:01:23]}  Kg8 {[%clk 0:01:07]} 26. Rhd1 {[%clk 0:01:18]}  b3 {[%clk 0:00:43]} 27. axb3 {[%clk 0:01:16]}  axb3 {[%clk 0:00:44]} 28. c3 {[%clk 0:01:08]}  Qa8 {[%clk 0:00:44]} 29. Kd2 {[%clk 0:01:04]}  Qa2 {[%clk 0:00:43]} 30. Ke1 {[%clk 0:00:57]}  Bd7 {[%clk 0:00:33]} 31. Qd4 {[%clk 0:00:40]}  Bb5 {[%clk 0:00:29]} 32. c4 {[%clk 0:00:37]}  Qa5+ {[%clk 0:00:24]} 33. Kf2 {[%clk 0:00:34]}  Ba4 {[%clk 0:00:19]} 34. Rd5 {[%clk 0:00:24]}  Qc7 {[%clk 0:00:18]} 35. Rd7 {[%clk 0:00:23]}  Qh2+ {[%clk 0:00:18]} 36. Ke3 {[%clk 0:00:22]}  Nf4 {[%clk 0:00:14]} 37. Qd2 {[%clk 0:00:17]}  Ng2+ {[%clk 0:00:12]} 38. Kf2 {[%clk 0:00:15]}  Bxd7 {[%clk 0:00:12]} 39. Qxd7 {[%clk 0:00:14]}  Re6 {[%clk 0:00:10]} 40. Qd8+ {[%clk 0:00:13]}  Kg7 {[%clk 0:00:11]} 41. Qd4+ {[%clk 0:00:13]}  Kh7 {[%clk 0:00:11]} 42. Qd7 {[%clk 0:00:14]}  Nf4+ {[%clk 0:00:09]} 43. Ke3 {[%clk 0:00:14]}  Ng2+ {[%clk 0:00:08]} 44. Kf2 {[%clk 0:00:13]}  Nh4+ {[%clk 0:00:08]} 45. Ke3 {[%clk 0:00:13]}  Kg7 {[%clk 0:00:08]} 46. Qd4+ {[%clk 0:00:13]}  Qe5 {[%clk 0:00:05]} 47. Qxe5+ {[%clk 0:00:13]}  Rxe5 {[%clk 0:00:06]} 48. f4 {[%clk 0:00:14]}  Rc5 {[%clk 0:00:07]} 49. Kd4 {[%clk 0:00:14]}  Rc7 {[%clk 0:00:07]} 50. Rd3 {[%clk 0:00:14]}  Ng2 {[%clk 0:00:06]} 51. Rxb3 {[%clk 0:00:10]}  Nxf4 {[%clk 0:00:06]} 52. Rf3 {[%clk 0:00:09]}  Ne6+ {[%clk 0:00:07]} 53. Kd3 {[%clk 0:00:09]}  Nxg5 {[%clk 0:00:07]} 54. Re3 {[%clk 0:00:09]}  Ne6 {[%clk 0:00:08]} 55. b4 {[%clk 0:00:08]}  g5 {[%clk 0:00:08]} 56. b5 {[%clk 0:00:08]}  Kf6 {[%clk 0:00:09]} 57. e5+ {[%clk 0:00:08]}  Kf5 {[%clk 0:00:09]} 58. Kc3 {[%clk 0:00:08]}  Kf4 {[%clk 0:00:09]} 59. Re1 {[%clk 0:00:09]}  g4 {[%clk 0:00:10]} 60. Kb4 {[%clk 0:00:09]}  g3 {[%clk 0:00:10]} 61. b6 {[%clk 0:00:09]}  Rc8 {[%clk 0:00:10]} 62. Kb5 {[%clk 0:00:08]}  g2 {[%clk 0:00:10]} 63. b7 {[%clk 0:00:08]}  Rb8 {[%clk 0:00:10]} 64. Kb6 {[%clk 0:00:08]}  Kf3 {[%clk 0:00:10]} 65. Ka7 {[%clk 0:00:07]}  Rd8 {[%clk 0:00:09]} 66. b8=Q {[%clk 0:00:05]}  Rxb8 {[%clk 0:00:09]} 67. Kxb8 {[%clk 0:00:05]}  Kf2 {[%clk 0:00:10]} 68. Rd1 {[%clk 0:00:04]}  g1=Q {[%clk 0:00:09]} 69. Rxg1 {[%clk 0:00:05]}  Kxg1 {[%clk 0:00:10]} 70. Kc8 {[%clk 0:00:05]}  Kf2 {[%clk 0:00:10]} 71. Kd7 {[%clk 0:00:06]}  Ke3 {[%clk 0:00:11]} 72. Ke7 {[%clk 0:00:07]}  Ng5 {[%clk 0:00:11]} 73. Kf6 {[%clk 0:00:07]}  Kf4 {[%clk 0:00:04]} 74. c5 {[%clk 0:00:07]}  Ne4+ {[%clk 0:00:05]} 75. Kxf7 {[%clk 0:00:07]}  Nxc5 {[%clk 0:00:05]} 76. e6 {[%clk 0:00:08]}  Nxe6 {[%clk 0:00:06]} 1/2-1/2


[Site "https://www.chess.com"]

[Event "Titled Tuesday Blitz August 15 Early 2023"]
[White "Milosevic, Milos"]
[Black "Vasques, Antonio Pedro Freixial"]
[WhiteFideId "964875"]
[BlackFideId "1908332"]
[WhiteElo "2598"]
[BlackElo "2370"]
[Result "1-0"]
[Round "6"]
[TimeControl "180+1"]
[Date "2023.08.15"]
[WhiteClock "0:00:22"]
[BlackClock "0:00:14"]
[Board "86"]

1. e4 {[%clk 0:03:00]}  c5 {[%clk 0:02:59]} 2. Nf3 {[%clk 0:02:56]}  Nc6 {[%clk 0:02:59]} 3. Bb5 {[%clk 0:02:56]}  g6 {[%clk 0:02:55]} 4. Bxc6 {[%clk 0:02:54]}  dxc6 {[%clk 0:02:56]} 5. O-O {[%clk 0:02:55]}  Bg7 {[%clk 0:02:56]} 6. d3 {[%clk 0:02:53]}  Nf6 {[%clk 0:02:55]} 7. Nc3 {[%clk 0:02:51]}  Bg4 {[%clk 0:02:51]} 8. h3 {[%clk 0:02:50]}  Bxf3 {[%clk 0:02:51]} 9. Qxf3 {[%clk 0:02:49]}  Nd7 {[%clk 0:02:52]} 10. Be3 {[%clk 0:02:44]}  e5 {[%clk 0:02:44]} 11. a3 {[%clk 0:02:39]}  Qe7 {[%clk 0:02:40]} 12. b4 {[%clk 0:01:49]}  cxb4 {[%clk 0:02:09]} 13. axb4 {[%clk 0:01:50]}  Qxb4 {[%clk 0:02:09]} 14. Ne2 {[%clk 0:01:50]}  b6 {[%clk 0:01:24]} 15. Rfb1 {[%clk 0:01:46]}  Qd6 {[%clk 0:01:23]} 16. Bxb6 {[%clk 0:01:44]}  Nxb6 {[%clk 0:00:39]} 17. Rxb6 {[%clk 0:01:43]}  Qc5 {[%clk 0:00:35]} 18. Qe3 {[%clk 0:01:23]}  Qxe3 {[%clk 0:00:29]} 19. fxe3 {[%clk 0:01:23]}  O-O {[%clk 0:00:29]} 20. Rxc6 {[%clk 0:01:20]}  Bh6 {[%clk 0:00:28]} 21. Kf2 {[%clk 0:00:40]}  f5 {[%clk 0:00:28]} 22. Kf3 {[%clk 0:00:41]}  fxe4+ {[%clk 0:00:23]} 23. Kxe4 {[%clk 0:00:41]}  Rf2 {[%clk 0:00:24]} 24. Nc3 {[%clk 0:00:38]}  Rxc2 {[%clk 0:00:23]} 25. Nd5 {[%clk 0:00:37]}  Rxc6 {[%clk 0:00:20]} 26. Ne7+ {[%clk 0:00:37]}  Kf7 {[%clk 0:00:21]} 27. Nxc6 {[%clk 0:00:38]}  a6 {[%clk 0:00:20]} 28. Nxe5+ {[%clk 0:00:36]}  Ke6 {[%clk 0:00:20]} 29. Rc1 {[%clk 0:00:33]}  a5 {[%clk 0:00:18]} 30. d4 {[%clk 0:00:29]}  a4 {[%clk 0:00:17]} 31. Rc7 {[%clk 0:00:25]}  Kd6 {[%clk 0:00:16]} 32. Rd7+ {[%clk 0:00:24]}  Ke6 {[%clk 0:00:15]} 33. d5+ {[%clk 0:00:23]}  Kf6 {[%clk 0:00:15]} 34. Rf7+ {[%clk 0:00:21]}  Kg5 {[%clk 0:00:15]} 35. Nf3+ {[%clk 0:00:22]}  Kh5 {[%clk 0:00:14]} 36. g4# {[%clk 0:00:22]} 1-0


[Site "https://www.chess.com"]

[Event "Titled Tuesday Blitz August 15 Early 2023"]
[White "Chor, Kevin"]
[Black "Akylbek2021"]
[WhiteFideId "2090740"]
[WhiteElo "2593"]
[BlackElo "2349"]
[Result "0-1"]
[Round "6"]
[TimeControl "180+1"]
[Date "2023.08.15"]
[WhiteClock "0:00:10"]
[BlackClock "0:01:41"]
[Board "88"]

1. e4 {[%clk 0:02:57]}  c5 {[%clk 0:02:59]} 2. Nf3 {[%clk 0:02:55]}  Nc6 {[%clk 0:02:59]} 3. d4 {[%clk 0:02:55]}  cxd4 {[%clk 0:03:00]} 4. Nxd4 {[%clk 0:02:56]}  g6 {[%clk 0:03:01]} 5. Nc3 {[%clk 0:02:56]}  Bg7 {[%clk 0:03:01]} 6. Be3 {[%clk 0:02:57]}  Nf6 {[%clk 0:03:01]} 7. Bc4 {[%clk 0:02:56]}  O-O {[%clk 0:03:01]} 8. Bb3 {[%clk 0:02:57]}  Re8 {[%clk 0:03:01]} 9. O-O {[%clk 0:02:37]}  d6 {[%clk 0:03:01]} 10. h3 {[%clk 0:02:36]}  Na5 {[%clk 0:02:54]} 11. Qe2 {[%clk 0:02:17]}  b6 {[%clk 0:02:47]} 12. Bd5 {[%clk 0:02:09]}  Nxd5 {[%clk 0:02:35]} 13. exd5 {[%clk 0:02:10]}  Bb7 {[%clk 0:02:31]} 14. b4 {[%clk 0:01:42]}  Rc8 {[%clk 0:02:30]} 15. Ncb5 {[%clk 0:01:39]}  Nc4 {[%clk 0:02:23]} 16. Nxa7 {[%clk 0:01:37]}  Bxd5 {[%clk 0:02:03]} 17. Nxc8 {[%clk 0:01:31]}  Qxc8 {[%clk 0:02:04]} 18. Rad1 {[%clk 0:01:26]}  Qb7 {[%clk 0:01:47]} 19. Nf3 {[%clk 0:00:55]}  Nb2 {[%clk 0:01:47]} 20. Rb1 {[%clk 0:00:20]}  Bc4 {[%clk 0:01:47]} 21. Qd2 {[%clk 0:00:19]}  Bxf1 {[%clk 0:01:47]} 22. Rxf1 {[%clk 0:00:20]}  Nc4 {[%clk 0:01:47]} 23. Qd3 {[%clk 0:00:18]}  Rc8 {[%clk 0:01:41]} 24. Bd4 {[%clk 0:00:18]}  e5 {[%clk 0:01:42]} 25. Bc3 {[%clk 0:00:10]}  e4 {[%clk 0:01:41]} 0-1


[Site "https://www.chess.com"]

[Event "Titled Tuesday Blitz August 15 Early 2023"]
[White "rionelG"]
[Black "Musovic, Armin"]
[BlackFideId "939935"]
[WhiteElo "2332"]
[BlackElo "2587"]
[Result "1-0"]
[Round "6"]
[TimeControl "180+1"]
[Date "2023.08.15"]
[WhiteClock "0:00:16"]
[BlackClock "0:00:21"]
[Board "90"]

1. e4 {[%clk 0:03:00]}  c6 {[%clk 0:03:00]} 2. d4 {[%clk 0:02:59]}  d5 {[%clk 0:03:01]} 3. e5 {[%clk 0:03:00]}  c5 {[%clk 0:03:01]} 4. dxc5 {[%clk 0:02:59]}  Nc6 {[%clk 0:03:01]} 5. Nf3 {[%clk 0:02:58]}  Bg4 {[%clk 0:03:02]} 6. c3 {[%clk 0:02:58]}  Qc7 {[%clk 0:03:00]} 7. Nbd2 {[%clk 0:02:27]}  e6 {[%clk 0:02:54]} 8. Qa4 {[%clk 0:02:11]}  Bxf3 {[%clk 0:02:33]} 9. Nxf3 {[%clk 0:02:11]}  Bxc5 {[%clk 0:02:33]} 10. c4 {[%clk 0:02:10]}  Ne7 {[%clk 0:02:32]} 11. Bd3 {[%clk 0:01:56]}  Bb4+ {[%clk 0:02:23]} 12. Kf1 {[%clk 0:01:46]}  O-O {[%clk 0:02:15]} 13. a3 {[%clk 0:01:44]}  Bc5 {[%clk 0:02:06]} 14. b4 {[%clk 0:01:43]}  Bd4 {[%clk 0:02:03]} 15. Nxd4 {[%clk 0:01:36]}  Nxd4 {[%clk 0:02:04]} 16. Bb2 {[%clk 0:01:36]}  Qxe5 {[%clk 0:01:54]} 17. Rd1 {[%clk 0:01:34]}  dxc4 {[%clk 0:01:38]} 18. Bxd4 {[%clk 0:01:33]}  Qc7 {[%clk 0:01:15]} 19. Qc2 {[%clk 0:00:59]}  Ng6 {[%clk 0:00:53]} 20. Qxc4 {[%clk 0:00:58]}  Qf4 {[%clk 0:00:41]} 21. Be3 {[%clk 0:00:50]}  Qf6 {[%clk 0:00:34]} 22. g3 {[%clk 0:00:28]}  Rac8 {[%clk 0:00:31]} 23. Qd4 {[%clk 0:00:22]}  Qf3 {[%clk 0:00:28]} 24. Bxg6 {[%clk 0:00:16]}  Qxh1+ {[%clk 0:00:25]} 25. Ke2 {[%clk 0:00:16]}  Qxh2 {[%clk 0:00:24]} 26. Be4 {[%clk 0:00:15]}  Rfd8 {[%clk 0:00:23]} 27. Qxd8+ {[%clk 0:00:15]}  Rxd8 {[%clk 0:00:21]} 28. Rxd8# {[%clk 0:00:16]} 1-0


[Site "https://www.chess.com"]